Cogmind - Beta 15 @@@ ROGUE MODE // 2025.08.26 @ 03:16:17 Player: Mogwok Wargfriend Result: Smashed by cave-in Performance ------------- Evolutions (4) 2000 Regions Visited (5) 1000 Robots Destroyed (114) 570 Value Destroyed (3594) 3594 Prototype IDs (8) 160 Alien Tech Used (0) 0 Bonus (3092) 3092 TOTAL SCORE: 10416 Bonus ------- High Alert Combat Kills 215 Follower Combat Kills 77 Delivered SUBCON Basin 2000 Registered with UFD 300 Met Optimus in HQ 500 Cogmind --------- Core Integrity 0/850 Matter 288/300 Energy 128/150 System Corruption 20% Temperature Cool (0) Movement Walking (190) Ox1 Location -6/Factory Parts ------- > --- POWER (1) -------- Light Angular Momentum Engine > --- PROPULSION (4) --- Carbon-fiber Leg Armored Leg Armored Leg > --- UTILITY (8) ------ Scrap Suit High-capacity Storage Unit Structural Scanner Backup Plating III > --- WEAPON (2) ------- Phase Cannon Phase Cannon > --- INVENTORY (20) --- Enhanced Nuclear Core Light Fission Core Armored Leg Wheel High-capacity Matter Pod (200) Matter Compressor (230) Improved Transmission Jammer Mapping Drone Bay (3/3) Heavy Laser Gatling Laser Gatling Laser Phase Cannon Magnetic Acceleration Cannon Grenade Launcher Mini Grenade Launcher Multitool Peak State ------------ > --- POWER ------------ Light Angular Momentum Engine > --- PROPULSION ------- Carbon-fiber Leg Carbon-fiber Leg Armored Leg Armored Leg > --- UTILITY ---------- Advanced Heat Sink Improved Cooling System High-capacity Storage Unit Structural Scanner Advanced Signal Interpreter Backup Plating III Hacking Suite Tech Extrapolator > --- WEAPON ----------- Phase Cannon Phase Cannon > --- INVENTORY -------- Enhanced Nuclear Core Light Fission Core Carbon-fiber Leg Wheel Scrap Suit Improved Heat Sink High-capacity Matter Pod Matter Compressor Improved Transmission Jammer Backup Plating III Mapping Drone Bay Heavy Laser Gatling Laser Gatling Laser Phase Cannon Magnetic Acceleration Cannon Grenade Launcher Mini Grenade Launcher Multitool [Rating: 66] Favorites ----------- Power Ion Engine Engine Ion Engine Power Core Enhanced Nuclear Core Propulsion Compact Wheel Treads Spiked Treads Leg Carbon-fiber Leg Wheel Compact Wheel Hover Unit Cooled Airjet Utility High-capacity Storage Unit Device Advanced Heat Sink Storage High-capacity Storage Unit Processor Tech Extrapolator Hackware Hacking Suite Protection Improved Light Armor Plating Weapon Mini Grenade Launcher Energy Gun Gatling Laser Energy Cannon Phase Cannon Ballistic Gun Coil Gun Ballistic Cannon Magnetic Acceleration Cannon Launcher Mini Grenade Launcher Build | -11 -10 -10 -9 -9 -6 ------- Run | Yrd Mat Sub Rec Scr Fac Slots Evolved 8 | . . . . . 8 Power . | . . . . . . Propulsion 2 | . . . . . 2 Utility 6 | . . . . . 6 Weapon . | . . . . . . Parts Attached 99 | 7 7 10 2 3 70 Power 8 | 1 . 1 . . 6 Engine 7 | 1 . 1 . . 5 Core 1 | . . . . . 1 Reactor . | . . . . . . Propulsion 35 | 2 2 4 . . 27 Treads 10 | 1 1 3 . . 5 Leg 11 | . . . . . 11 Wheel 13 | 1 1 1 . . 10 Hover 1 | . . . . . 1 Flight . | . . . . . . Utility 33 | 2 2 2 . 3 24 Device 16 | 1 1 . . . 14 Storage 5 | 1 1 1 . 1 1 Processor 3 | . . . . 1 2 Hackware 1 | . . . . . 1 Protection 8 | . . 1 . 1 6 Artifact . | . . . . . . Weapon 23 | 2 3 3 2 . 13 Energy Gun 6 | 1 . . . . 5 Energy Cannon 2 | . . . . . 2 Ballistic Gun 3 | 1 . . . . 2 Ballistic Cannon 3 | . . . . . 3 Launcher 9 | . 3 3 2 . 1 Special Weapon . | . . . . . . Impact Weapon . | . . . . . . Slashing Weapon . | . . . . . . Piercing Weapon . | . . . . . . Special Melee Weapon . | . . . . . . Unidentified Prototypes 2 | . . . . . 2 Parts Lost 43 | . . 6 . . 37 Power 3 | . . 1 . . 2 Propulsion 17 | . . 2 . . 15 Utility 16 | . . . . . 16 Weapon 7 | . . 3 . . 4 Highest Loss Streak 9 | . . 2 . . 9 To Critical Strikes . | . . . . . . Average Backups 16 | 5 9 11 9 19 17 Power 1 | . 1 . . 1 1 Propulsion 2 | 3 3 2 2 3 1 Utility 5 | . . 3 3 7 6 Weapon 5 | 1 3 4 3 5 7 Tool/Special . | . . . . . . Unused Backups 31 | 1 4 3 1 8 14 Power 4 | . . . . 1 3 Propulsion 8 | 1 2 . 1 2 2 Utility 8 | . . 1 . 3 4 Weapon 8 | . 2 1 . 1 4 Tool/Special 3 | . . 1 . 1 1 Average Slot Usage (%) 93 | . 100 92 85 92 95 Engine 10 | . 14 13 14 14 3 Treads 9 | . 14 13 14 14 2 Leg 4 | . . . . . 13 Wheel 12 | . 14 14 14 14 8 Device 7 | . 14 2 . . 18 Storage 11 | . 14 13 14 14 6 Processor 6 | . . . . 6 12 Hackware 1 | . . . . . 5 Protection 2 | . . 4 . . 5 Energy Gun 3 | . 14 4 . . 5 Energy Cannon 1 | . . . . . 3 Launcher 17 | . 13 23 28 28 . Peak Build Rating 66 | 7 8 27 29 21 66 Average Rating 29 | 6 7 13 25 17 57 On Entrance 12 | . 7 8 27 12 21 Naked Turns . | . . . . . . Heaviest Build 75 | 15 31 51 51 55 75 Greatest Support 62 | 16 16 16 16 16 62 Greatest Overweight (x) 19 | . 3 3 3 3 19 Average Overweight (x) 2 | . 1 2 2 2 2 Largest Inventory Capacity 25 | 8 15 25 25 25 20 Average Capacity 20 | 7 11 19 25 22 20 Most Carried 25 | 8 15 25 25 25 20 Average Carried 18 | 5 9 16 22 19 18 Final Capacity 25 | 8 15 25 25 20 20 Final Carried 25 | 8 15 25 11 20 16 Class Distribution -------------------- 70% | Mutant 29% | Scavenger-Mutant Dominant Class ---------------- Mutant | -10/Materials Mutant | -10/Subcaves Mutant | -9/Recycling Mutant | -9/Scraptown Scavenger-Mutant | -6/Factory Resources | -11 -10 -10 -9 -9 -6 ----------- Run | Yrd Mat Sub Rec Scr Fac Matter Collected 3789 | 318 422 869 126 233 1821 Remotely . | . . . . . . Salvage Created 3718 | 155 387 225 294 . 2657 Parts 191 | 16 29 20 10 . 116 Haulers Intercepted 1 | . 1 . . . . Recyclers Shooed 10 | . . . . . 10 Parts Field Recycled . | . . . . . . Retrieved Matter . | . . . . . . Parts Self-Destructed 12 | . . 12 . . . Prevented . | . . . . . . Kills | -11 -10 -10 -9 -9 -6 ------- Run | Yrd Mat Sub Rec Scr Fac Combat Hostiles Destroyed 76 | . 10 13 2 . 51 Guns 23 | . 1 . . . 22 Cannons 22 | . . . . . 22 AOE 30 | . 9 13 2 . 6 Classes Destroyed 18 | 3 6 3 1 . 5 Worker 7 | 2 2 . . . 3 Builder 4 | . 1 . . . 3 Tunneler 6 | 4 . . . . 2 Hauler 1 | . 1 . . . . Recycler 9 | 1 1 . 3 . 4 Mechanic 1 | . . . . . 1 Operator 3 | . 2 . . . 1 Turret 2 | . . 2 . . . Watcher 5 | . 3 . . . 2 Swarmer 22 | . 3 4 . . 15 Grunt 28 | . 7 2 . . 19 Brawler 2 | . . . . . 2 Duelist 1 | . . . . . 1 Protector 1 | . . . . . 1 Sentry 7 | . . . 2 . 5 Programmer 8 | . . . . . 8 Artisan 1 | . . 1 . . . Subdweller 7 | . . 7 . . . Best Kill Streak 11 | 4 11 5 3 . 6 Combat Bots Only 7 | . 7 5 1 . 5 Max Kills in Single Turn 2 | 1 2 2 2 . 2 Gunslinging . | . . . . . . Exploded 2 | . 2 2 1 . 1 Melee . | . . . . . . Uniques/NPCs Destroyed . | . . . . . . Combat | -11 -10 -10 -9 -9 -6 -------- Run | Yrd Mat Sub Rec Scr Fac Hostile Shots Fired 672 | . 21 78 4 . 569 Missed 236 | . 9 23 1 . 203 Hits 436 | . 12 55 3 . 366 Melee 6 | . . . . . 6 Projectile 430 | . 12 55 3 . 360 Critical Strikes 12 | . . 1 . . 11 Damage Taken 6723 | . 210 793 41 . 5679 Core 1041 | . 35 98 . . 908 Absorbed by Shields . | . . . . . . Ignored by Resistances 253 | . . . . . 253 Core Remaining (%) 73 | 100 . . . 46 . Volleys Fired 326 | 16 38 34 5 . 233 Largest 2 | 2 2 2 2 . 2 Hottest 170 | 70 80 80 60 . 170 Shots Fired 606 | 32 61 60 8 . 445 Gun 300 | 32 38 14 . . 216 Cannon 225 | . . . . . 225 Launcher 81 | . 23 46 8 . 4 Special . | . . . . . . Kinetic 147 | 16 . . . . 131 Thermal 378 | 16 38 14 . . 310 Explosive 81 | . 23 46 8 . 4 Electromagnetic . | . . . . . . Robot Hit Streak 14 | 4 7 14 6 . 13 Robot Miss Streak 6 | 2 3 6 1 . 4 Penetration Max 2 | . . . . . 2 Secondary Targets 1 | . . . . . 1 Max Gunslinging Chain 1 | . . . . . 1 Shots Hit Robots 343 | 18 31 26 3 . 265 Core Hits 265 | 8 29 34 12 . 182 Critical Kills . | . . . . . . Critical Parts Destroyed 1 | . . . . . 1 Critical Strikes 11 | 1 1 1 . . 8 Burn 6 | 1 1 1 . . 3 Destroy 1 | . . . . . 1 Blast 4 | . . . . . 4 Melee Attacks . | . . . . . . Impact . | . . . . . . Slashing . | . . . . . . Piercing . | . . . . . . Sneak Attacks . | . . . . . . Combat Hostiles . | . . . . . . Follow-up Attacks . | . . . . . . Damage Inflicted 10748 | 220 1338 1528 196 . 7466 Guns 4686 | 220 231 50 . . 4185 Cannons 2647 | . . . . . 2647 Explosions 3410 | . 1107 1478 196 . 629 Melee . | . . . . . . Ramming 5 | . . . . . 5 Kinetic 2459 | 120 . . . . 2339 Thermal 4918 | 100 231 50 . . 4537 Explosive 3221 | . 1107 1478 196 . 440 Electromagnetic 145 | . . . . . 145 Impact . | . . . . . . Slashing . | . . . . . . Piercing . | . . . . . . Highest Corruption 11 | . . . . . 11 Average Corruption 3 | . . . . . 3 Corruption Purged . | . . . . . . Corruption Blocked . | . . . . . . Effects 53 | . . . . . 53 Message Errors 7 | . . . . . 7 Matter Fused 9 | . . . . . 9 Heat Flow Errors 9 | . . . . . 9 Energy Discharges 10 | . . . . . 10 Parts Fused 1 | . . . . . 1 Data Loss (minor) 6 | . . . . . 6 Data Loss (major) 4 | . . . . . 4 Alerts 1 | . . . . . 1 Weapon Failures 6 | . . . . . 6 Overload Shots . | . . . . . . Overflow Damage 171 | . 3 22 . . 146 Projectiles 91 | . . . . . 91 Explosions 80 | . 3 22 . . 55 Melee . | . . . . . . Knockbacks 19 | . . . . . 19 Impact . | . . . . . . Kinetic 17 | . . . . . 17 Secondary 2 | . . . . . 2 Self-Inflicted Damage 355 | . 79 60 . . 216 Shots 11 | . 3 3 . . 5 Rammed 1 | . . . . . 1 Targets Rammed 1 | . . . . . 1 Kicked . | . . . . . . Crushed . | . . . . . . Highest Temperature 237 | 54 144 7 9 . 237 Average Temperature 49 | 19 45 3 9 . 59 Received Heat Transfer 1731 | . 57 279 18 . 1377 Siege Activations . | . . . . . . Martial Activations . | . . . . . . Shielding Activations . | . . . . . . Robots Disrupted 1 | . . . . . 1 Combat Hostiles 1 | . . . . . 1 Robots Corrupted . | . . . . . . Combat Hostiles . | . . . . . . Parts Fried . | . . . . . . Impact Corruptions . | . . . . . . Robots Melted 2 | . . . . . 2 Combat Hostiles 1 | . . . . . 1 Parts Melted 16 | 1 . . . . 15 Heat Transferred 10431 | 370 740 222 . . 9099 Parts Sabotaged . | . . . . . . Parts Stolen . | . . . . . . Parts Stripped . | . . . . . . Power Chain Reactions 1 | . . . . . 1 Alert | -11 -10 -10 -9 -9 -6 ------- Run | Yrd Mat Sub Rec Scr Fac Maximum Alert Level 3 | . 1 . . . 3 Low Security (%) 46 | 100 39 . 100 . 31 Level 1 21 | . 60 . . . 21 Level 2 26 | . . . . . 39 Level 3 5 | . . . . . 7 Level 4 . | . . . . . . Level 5 . | . . . . . . High Security . | . . . . . . Max Security . | . . . . . . Peak Influence 806 | 10 353 . 43 . 806 Initial . | . . . . . . Average 278 | 1 183 . 4 . 377 Influence Increases 2708 | 35 444 320 111 . 1798 Destroy 0b10 Robot/C 1440 | . 200 160 40 . 1040 Destroy 0b10 Robot/NC 185 | 35 50 . 15 . 85 Destroy Leader 292 | . 48 10 . . 234 Allied During Kill 18 | . . . . . 18 Successful Hack 60 | . 4 . 21 . 35 Disable Machine 195 | . 30 . . . 165 Destroy Structure 203 | . 82 . 35 . 86 Partial Spotted 15 | . . . . . 15 Lose Combat Pursuer 300 | . 30 150 . . 120 Influence Decreases 2019 | 35 249 515 111 . 1109 Entered New Map 95 | . . 95 . . . Time Decay 1452 | 35 249 370 111 . 687 Lost Part 412 | . . 50 . . 362 Lost Ally 60 | . . . . . 60 Squads Dispatched 21 | . 1 . . . 20 Investigation 2 | . . . . . 2 Extermination 7 | . . . . . 7 Reinforcement 6 | . 1 . . . 5 Assault 1 | . . . . . 1 Garrison 5 | . . . . . 5 Intercept . | . . . . . . Searches Triggered . | . . . . . . Construction Impeded 2 | . . . . . 2 Haulers Reinforced 1 | . . . . . 1 Active Scanning Responses . | . . . . . . Cargo Convoy Interrupts 1 | . . . . . 1 Stealth | -11 -10 -10 -9 -9 -6 --------- Run | Yrd Mat Sub Rec Scr Fac Distress Signals 3 | . 3 . . . . Communications Jammed 1 | . . . . . 1 Distress Signals 1 | . . . . . 1 Times Spotted 115 | . 17 23 2 . 73 Peak Tracking Total 6 | . 5 4 1 . 6 Tactical Retreats 10 | . 1 2 . . 7 Traps | -11 -10 -10 -9 -9 -6 ------- Run | Yrd Mat Sub Rec Scr Fac Traps Triggered 4 | . . . . . 4 Indirectly . | . . . . . . Trap Hack Attempts . | . . . . . . Triggered . | . . . . . . Disarmed . | . . . . . . Reprogrammed . | . . . . . . Reused . | . . . . . . Traps Extracted . | . . . . . . Installed . | . . . . . . Triggered . | . . . . . . Machines | -11 -10 -10 -9 -9 -6 ---------- Run | Yrd Mat Sub Rec Scr Fac Machines Disabled 16 | . 2 3 . . 11 Max in Single Turn 3 | . 1 3 . . 2 Machines Repaired . | . . . . . . Machines Dismantled . | . . . . . . Machines Sabotaged . | . . . . . . Overloaded Fab Kills . | . . . . . . Hacking | -11 -10 -10 -9 -9 -6 --------- Run | Yrd Mat Sub Rec Scr Fac Machines Accessed 37 | . 3 2 12 8 12 Terminals 12 | . 3 . 5 . 4 Fabricators 3 | . . . . . 3 Repair Stations 1 | . . . . . 1 Recycling Units 8 | . . . 5 . 3 Scanalyzers . | . . . . . . Garrison Access 1 | . . . . . 1 Total Hacks 116 | . 5 3 39 37 32 Successful 87 | . 2 3 28 37 17 Failed 29 | . 3 . 11 . 15 Catastrophic 6 | . 2 . 1 . 3 Database Lockouts . | . . . . . . Manual 32 | . 3 . 19 . 10 Terminals 30 | . 5 . 17 . 8 Fabricators 8 | . . . . . 8 Repair Stations 2 | . . . . . 2 Recycling Units 26 | . . . 14 . 12 Scanalyzers . | . . . . . . Garrison Access 2 | . . . . . 2 Terminal Hacks 54 | . 2 3 11 37 1 Record 40 | . . 1 8 31 . Part Schematic 1 | . . . 1 . . Robot Analysis 10 | . 1 . 2 6 1 Prototype ID Bank 1 | . 1 . . . . Open Door 1 | . . 1 . . . Release Object 1 | . . 1 . . . Fabricator Hacks 4 | . . . . . 4 Network Status 2 | . . . . . 2 Load Schematic 1 | . . . . . 1 Build 1 | . . . . . 1 Repair Station Hacks . | . . . . . . Recycling Unit Hacks 14 | . . . 8 . 6 Report Inventory 8 | . . . 5 . 3 Retrieve Components 6 | . . . 3 . 3 Scanalyzer . | . . . . . . Garrison Access Hacks . | . . . . . . Unauthorized Hacks 15 | . . . 9 . 6 Terminals 5 | . . . 4 . 1 Botnet 5 | . . . 4 . 1 Fabricators 2 | . . . . . 2 Liberate 2 | . . . . . 2 Repair Stations . | . . . . . . Recycling Units 8 | . . . 5 . 3 Reject 7 | . . . 4 . 3 Recyclers 1 | . . . 1 . . Scanalyzers . | . . . . . . Garrison Access . | . . . . . . Data Cores Recovered 2 | . 1 . . . 1 Used 1 | . 1 . . . . Hacking Detections 21 | . 3 . 6 . 12 Full Trace Events 2 | . . . . . 2 Feedback Events . | . . . . . . Feedback Blocked . | . . . . . . Robot Schematics Acquired . | . . . . . . Robots Built . | . . . . . . Authchips . | . . . . . . Time . | . . . . . . Total Robot Build Rating . | . . . . . . Part Schematics Acquired 16 | . . . 1 3 12 Parts Built 1 | . . . . . 1 Authchips . | . . . . . . Time 84 | . . . . . 84 Total Part Build Rating 4 | . . . . . 4 Parts Repaired . | . . . . . . Time . | . . . . . . Parts Recycled . | . . . . . . Recycled Matter . | . . . . . . Retrieved Matter . | . . . . . . Retrieved Components 27 | . . . 6 . 21 Parts Scanalyzed . | . . . . . . Part Schematics Acquired . | . . . . . . Parts Damaged . | . . . . . . Bothacking | -11 -10 -10 -9 -9 -6 ------------ Run | Yrd Mat Sub Rec Scr Fac Used RIF Installer . | . . . . . . Robots Hacked . | . . . . . . Non-combat . | . . . . . . Combat . | . . . . . . Robot Hacks Applied . | . . . . . . Relay Couplers Released . | . . . . . . Fabnet Peak Effective % . | . . . . . . Robots Rewired 1 | . . . . . 1 Allies Hacked . | . . . . . . Hacks Repelled . | . . . . . . Allies | -11 -10 -10 -9 -9 -6 -------- Run | Yrd Mat Sub Rec Scr Fac Total Allies 4 | . . . . . 4 Largest Group 3 | . . . . . 3 Highest-Rated Group 87 | . . . . . 87 Highest-Rated Ally 32 | . . . . . 32 Total Orders . | . . . . . . Ally Attacks 14 | . . . . . 14 Total Damage 248 | . . . . . 248 Kills 2 | . . . . . 2 Allies Corrupted . | . . . . . . Allies Melted . | . . . . . . Intel | -11 -10 -10 -9 -9 -6 ------- Run | Yrd Mat Sub Rec Scr Fac Active Infowar (turns) 4818 | 95 756 349 . . 3618 Sensors 1296 | . 667 349 . . 280 Terrain 1138 | . . . . . 1138 Structural 2388 | . . . . . 2388 Seismic 184 | 95 89 . . . . Jamming 682 | . . . . . 682 Robot Analysis Total 10 | . 1 . 2 6 1 Derelict Logs Recovered 2 | . . 1 . 1 . Drone Launches . | . . . . . . Drone Recoveries . | . . . . . . Exploration | -11 -10 -10 -9 -9 -6 ------------- Run | Yrd Mat Sub Rec Scr Fac Turns Passed 12404 | 185 759 1726 1056 4553 4125 Spaces Moved 7253 | 121 559 1161 699 2474 2239 Core 8 | 7 . . . . 1 Treads 14 | . . . . . 14 Legs 473 | . . . . . 473 Wheels 6758 | 114 559 1161 699 2474 1751 Hover . | . . . . . . Flight . | . . . . . . Fastest Speed 50 | 50 95 100 130 100 110 Average Speed 133 | 97 111 135 138 130 141 Slowest Speed 1000 | 100 125 145 145 145 1000 Overloaded Moves . | . . . . . . Propulsion Burnouts . | . . . . . . Robots Hopped . | . . . . . . Potential Cave-ins 38 | . . . . . 38 Cave-ins Triggered 3 | . . . . . 3 Exploration Rate (%) 57 | 5 73 50 90 94 32 Regions Visited 5 Branch Regions 3 Pre-discovered Areas 1 | . . 1 . . . Known Exits Taken . | . . . . . . Unknown Exits Taken 5 | 1 1 1 1 1 . Scrap Searched 12 | . . 4 . 8 . Spaces Dug 35 | . . 7 . . 28 Terrain Destroyed 441 | . 79 170 47 . 145 Melee . | . . . . . . Projectile 116 | . . . . . 116 AOE 325 | . 79 170 47 . 29 Terrain Rammed . | . . . . . . Walls Destroyed . | . . . . . . Machines Disabled . | . . . . . . Actions | -11 -10 -10 -9 -9 -6 --------- Run | Yrd Mat Sub Rec Scr Fac Total 9372 | 153 635 1264 780 3813 2727 Wait 1448 | . 8 24 67 1280 69 Move 7247 | 120 558 1160 698 2473 2238 Hop . | . . . . . . Pick Up 118 | 9 13 20 2 42 32 Fast Attach 50 | 7 1 1 1 . 40 Attach 29 | . . 6 . 2 21 Detach 12 | . . 1 . . 11 Swap 40 | . 7 5 2 1 25 Drop 83 | 1 10 13 5 15 39 Fire 326 | 16 38 34 5 . 233 Melee . | . . . . . . Ram 1 | . . . . . 1 Kick . | . . . . . . Crush . | . . . . . . Escape Stasis 14 | . . . . . 14 Rewire 4 | . . . . . 4 Trap . | . . . . . . Miscellaneous . | . . . . . . Route ------- -11/Scrapyard -10/Materials (discovered 3 exits: [*Mat] / [*Min] / *Sub) -10/Subcaves (discovered 2 exits: [*Mat] / *Rec) -9/Recycling (discovered 2 exits: [*Fac] / *Scr) -9/Scraptown (discovered 2 exits: *Fac x2) -6/Factory (discovered 1 exit: *Low) History --------- Turn | Location | Event 23 | -11/Scrapyard | Discovered new exit (range 16) 186 | -11/Scrapyard | Entered Materials 317 | -10/Materials | Build established: Mutant 372 | -10/Materials | Discovered new exit (range 16) 513 | -10/Materials | Destroyed 7 combat bots 588 | -10/Materials | Discovered new exit (range 15) 872 | -10/Materials | Discovered new exit (range 7) 945 | -10/Materials | Entered Subcaves 985 | -10/Subcaves | Discovered new exit (range 10) 1003 | -10/Subcaves | Shifting Twisted Machinery released Hvy. Riot Gun 1008 | -10/Subcaves | Shifting Twisted Machinery released Sub. Machine Gun 1064 | -10/Subcaves | Ambushed by angry Subdweller bent on revenge 1110 | -10/Subcaves | Discovered new exit (range 8) 1342 | -10/Subcaves | Learned location of Zion (-7) 1933 | -10/Subcaves | Core integrity fell below 50% 2137 | -10/Subcaves | A swath of the cavern ceiling suddenly collapsed 2237 | -10/Subcaves | Found SUBCON Basin 2671 | -10/Subcaves | Entered Recycling 3076 | -9/Recycling | Discovered new exit (range 16) 3467 | -9/Recycling | Scanned before Scraplab entrance 3507 | -9/Recycling | Entered Scraplab 3549 | -9/Recycling | Discovered new exit (range 3) 3727 | -9/Recycling | Entered Scraptown 4092 | -9/Scraptown | Heard Great Nut preacher, LISTEN AND RECITE! 4163 | -9/Scraptown | Discovered new exit (range 5) 4269 | -9/Scraptown | Scanned Subdweller tech in exchange for log data 4272 | -9/Scraptown | Learned location of 2 exits from Research 4304 | -9/Scraptown | Visited Bundlers 4406 | -9/Scraptown | Visited Comm Corps 4467 | -9/Scraptown | Visited Awakened 4541 | -9/Scraptown | Visited Shadow of the Wyrm 4582 | -9/Scraptown | Visited Cyclists 4603 | -9/Scraptown | Visited The Evicted 4631 | -9/Scraptown | Visited Junk Repository 4685 | -9/Scraptown | Visited UFD Registry 4698 | -9/Scraptown | Registered with UFD as "Datahacker" 5028 | -9/Scraptown | Entered Cyclist Reading Room 5103 | -9/Scraptown | Visited Junk Cannon Lab 5138 | -9/Scraptown | Visited Curators Association 5195 | -9/Scraptown | Visited Scrap Suit Storage 5233 | -9/Scraptown | Delivered Scrap Shield to a Scientist 5349 | -9/Scraptown | Visited Analyses Database 5377 | -9/Scraptown | Visited Supply Room 5406 | -9/Scraptown | Visited Junk Repository 5459 | -9/Scraptown | Visited Modified Component R&D 5533 | -9/Scraptown | Visited Supply Room 5572 | -9/Scraptown | Visited Research Penetration Think Tank 5604 | -9/Scraptown | Visited Cartography Club 6556 | -9/Scraptown | Tech Extrapolator generated special schematic: Machine Rigger 8170 | -9/Scraptown | Met Optimus 8170 | -9/Scraptown | Accepted into 0bPrime 8256 | -9/Scraptown | Found Scrap Suit 8275 | -9/Scraptown | Discovered new exit (range 3) 8280 | -9/Scraptown | Entered Factory 8280 | -6/Factory | Evolved 8 slots: Propulsion x2, Utility x6 8386 | -6/Factory | Tech Extrapolator generated special schematic: Deep Structural Scanner 8442 | -6/Factory | Discovered new exit (range 16) 8466 | -6/Factory | Garrison activated, responded to threat 8482 | -6/Factory | Garrison activated, responded to threat 8618 | -6/Factory | Lost 9 parts (1p4n2u2w) 8764 | -6/Factory | Identified exit to Lower Caves 8782 | -6/Factory | Garrison activated, responded to threat 8866 | -6/Factory | Lost 3 parts (1p1u1w) 8924 | -6/Factory | Build established: Scavenger-Mutant 8996 | -6/Factory | Cargo convoy interrupted 9704 | -6/Factory | Fabricated Deep Structural Scanner? 10288 | -6/Factory | Core integrity fell below 50% 10320 | -6/Factory | Lost 4 parts (1n3u) 10450 | -6/Factory | Lost 6 parts (4n1u1w) 10775 | -6/Factory | Tech Extrapolator generated special schematic: Energy Deflector 11167 | -6/Factory | Core integrity fell below 20% 11780 | -6/Factory | First assault squad dispatched 12293 | -6/Factory | Crushed by falling debris 12358 | -6/Factory | Crushed by falling debris 12358 | -6/Factory | System corruption reached 10% 12389 | -6/Factory | Lost 3 parts (3u) 12406 | -6/Factory | Crushed by falling debris 12406 | -6/Factory | Smashed by cave-in Last Messages --------------- cycle. 12328_ System corrupted: Component data lost. 12341_ The unstable cave ceiling collapses. 12358_ Crushed by falling debris. 12358_ Hacking Suite destroyed. 12358_ System corrupted by crushing effect (+1). 12358_ Adv. Signal Interpreter destroyed. 12358_ System corrupted by crushing effect (+3). 12358_ Adv. Heat Sink destroyed. 12358_ System corrupted by crushing effect (+1). 12382_ The unstable cave ceiling collapses. 12383_ System corrupted: Matter fused (-7). 12406_ The unstable cave ceiling collapses. 12406_ Crushed by falling debris. 12406_ Imp. Cooling System destroyed. 12406_ System corrupted by crushing effect (+1). 12406_ Adv. Heat Sink destroyed. 12406_ System corrupted by crushing effect (+5). 12406_ Carbon-fiber Leg destroyed. 12406_ System corrupted by crushing effect (+3). Map ----- +----------------------------------------------------+ | ?????????# ###############???####### """ # | | ?????????# ##### # # | | ????? + # """ + | | ??????" # =! > # """ # | | ?????????# % [!! # """ # | | ?????????# #####%! # ### | | ?????????#################+####### = ## ==### | | ????????????????????# #* ## ==### | | ????????????????????#"" ##% ############ | | ????????????????????#"" ##% %# / | | ????????????????????#"" ## |[## *# | | ????????????????????#G # % # %# | | ????????????????????#"" # % # =# | | ????????????????????#"" % + /% # | | ????????????????????#"" # # # | | ????????????????????# # # # | | ????????????????????# ####### # | | ????????????????????# ###???########### | | ????????????????????# ##?????????????## | | ???????????????????################?????????????## | | ???????????????????#####??#######???????????????## | | ???????????????????## ####??????????????????????## | | ???????????????????### ####?????????????????????## | | ????????????????????### #####???????????????????## | | ?????????????????????### ####???????????????????## | | ?????????????????????####@ ###??????????????????## | | ??????????????????????#### ####?????????????????## | | ???????????????????????#### ####????????????????## | | ????????????????????????#### ####????????????????? | | ?????????????????????????#### ####???????#???????? | | ??????????????????????????### #####??????????????? | | ???????????????????????????### ######????????#???? | | ???????????????????????????##### #####??????#??#?? | | ????????????????????????????#### # ###???????????? | | ??????????????????????????????### ###??????????? | | ??????????????????????????????##########?????????? | | ???????????????????????????????##########??????#?? | | ?????????????????????????????????### #####??????? | | ??????????????????????????????????#### ####??????? | | ??????????????????????????????????#### ###?????? | | ????????????????????????????????????#### #####???# | | ????????????????????????????????????##### ######?? | | ??????????????????????????????????????##### ####?? | | ??????????????????????????????????????##### # #### | | ??????????????????????????????????????###### #### | | ??????????????????????????????????????## | | ??????????????????????????????????????######## ### | | ??????????????????????????????????????############ | | ??????????????????????????????????????#??????####? | | ?????????????????????????????????????????????????? | +----------------------------------------------------+ Best States ------------- Heat Dissipation 97 Energy Generation 18 Energy Capacity 300 Matter Stores 300 Matter Capacity 300 Sight Range 16 Robot Scan Range 14 Terrain Scan Range 20 Terrain Scan Density 110 Jamming Range 14 Armor Coverage 300 Resistance: TH 20 Evasion (%) 41 Recoil Reduction 1 Offensive Hacking 10 Item Schematics ----------------- Arm. Wheel | -9/Recycling | Hacked Mak. Coolant Network | -9/Scraptown | Extrapolated 0b10 Decoder Chip [Skirmisher] | -9/Scraptown | Extrapolated Machine Rigger | -9/Scraptown | Extrapolated Deep Structural Scanner | -6/Factory | Extrapolated Spk. Treads | -6/Factory | Extrapolated Mak. Leg | -6/Factory | Extrapolated Beamcaster | -6/Factory | Extrapolated Bore Cannon | -6/Factory | Extrapolated Mak. Axe | -6/Factory | Extrapolated Spk. Medium Treads | -6/Factory | Extrapolated Mak. Power Source | -6/Factory | Extrapolated Multitool | -6/Factory | Extrapolated Mak. Terrain Scanner | -6/Factory | Extrapolated Mak. Terrain Scan Processor | -6/Factory | Extrapolated Energy Deflector | -6/Factory | Extrapolated Robot Schematics ------------------ None Fabricated ------------ Deep Structural Scanner | x1 | -6/Factory Repaired ---------- Nothing Alien Tech Used ----------------- None Achievements -------------- None Challenges ------------ None Game ------ Seed ConstructTerrorStripper Manual? 1 Play Time 01:32:11 Cumulative 350.4 hours Start 2025.08.26 @ 01:17:05 End 2025.08.26 @ 03:16:17 Sessions 1 Manual Loads 0 Difficulty Rogue Special Mode None Game No. 298 Rogue 298 Adventurer 0 Explorer 0 Win Type - Total 2 Types 2/0/0/0/0/0/0/0/0/0 Lore% 76 Gallery% 68 Achievement% 54 Wizard Run 0 Options --------- Layout 2 ASCII 1 Keyboard 1 Movement Numpad Keybinds 0 Fullscreen 2 Font 32/TamsynBold Map View 50x44 Zoom Use 0% Tactical HUD 1 Map Filters NONE Filters NONE Steam 1 RUN: 16308d24-c1e7-4856-b6dc-a0c2429d5770